[Event "13th Dolomiti-Forni di Sopra-A 2022"]
[Site "Forni di Sopra"]
[Date "2022.06.13"]
[Round "2.7"]
[White "Prraneeth Vuppala"]
[Black "Harshita Guddanti"]
[Result "1/2-1/2"]
[ECO "C84"]
[WhiteElo "2447"]
[BlackElo "2208"]
[Annotator "TA"]
[PlyCount "116"]
[EventDate "2022.06.13"]
[EventType "swiss"]
[EventCountry "ITA"]
[SourceTitle "playchess.com"]
[Source "ChessBase"]
[SourceQuality "1"]
[TimeControl "40/5400+30:1800+30"]

{[%evp 15,116,10,25,14,27,24,24,16,26,18,22,31,26,18,22,21,26,27,35,18,18,18,70,33,37,36,65,54,70,68,78,79,116,-4,0,0,40,0,0,0,0,-392,-229,-1094,-1082,-29980,-568,-548,-207,-207,-171,-164,-172,-166,-170,-220,-93,-152,-95,-143,-143,-220,-132,-133,-115,-132,-126,-125,-132,-195,-200,-233,-205,-200,-186,-202,-203,-405,-401,-383,-379,-374,-340,-353,-339,-320,-297,-278,-252,-263,-233,-343,-337,-329,-327,-310,-154,-154,-154,-230,-118,-121,-59]} 1. e4 {[%emt 0:00:07]} e5 {[%emt 0:00:21]} 2. Nf3 {[%emt 0:00:20]} Nc6 {[%emt 0:00:04]} 3. Bb5 {[%emt 0:00:17]} a6 {[%emt 0:00:08]} 4. Ba4 {[%emt 0:00:09]} Nf6 {[%emt 0:00:06]} 5. O-O {[%emt 0:00:13]} Be7 {[%emt 0:00:05]} 6. d3 {[%emt 0:00:56]} b5 {[%emt 0:00:34]} 7. Bb3 {[%emt 0:00:11]} d6 {[%emt 0:00:21]} 8. c3 {[%emt 0:00:31]} O-O {[%emt 0:00:45]} 9. a4 {[%emt 0:00:22] Recently 9.h3 got a lot of attention. C84: Closed Ruy Lopez: Unusual White 6th moves.} Bd7 {[%emt 0:01:30]} 10. Bc2 {[%emt 0:00:26]} Re8 {[%emt 0:01:42]} 11. Re1 {[%emt 0:01:37] White has an edge.} Bf8 {[%emt 0:02:45]} 12. Bg5 {[%emt 0:02:01]} b4 {[%emt 0:11:16]} 13. Nbd2 {[%emt 0:05:12]} h6 {[%emt 0:01:39]} 14. Bh4 {[%emt 0:08:45] [#]} g5 $146 {[%emt 0:04:42]} ({Predecessor:} 14... Be7 15. Bg3 g6 16. h3 Nh5 17. Bh2 Bg5 18. Nc4 Bf4 19. d4 Rb8 20. Ne3 Bxh2+ 21. Kxh2 {1-0 (53) Swiercz,D (2665)-Gajewski,G (2633) Poznan 2016}) 15. Bg3 {[%emt 0:00:21]} Bg7 {[%emt 0:00:40]} 16. h3 {[%emt 0:28:15]} Rb8 {[%emt 0:11:34]} 17. a5 {[%emt 0:13:03]} bxc3 {[%emt 0:08:35]} 18. bxc3 {[%emt 0:00:11]} Nh5 {[%emt 0:01:06]} (18... Ne7 $11) 19. Bh2 {[%emt 0:04:13][%cal Of3e5]} (19. Nxe5 {seems wilder.} Rxe5 20. Bxe5 Bxe5 21. d4) 19... Nf4 {[%emt 0:02:36]} 20. Bxf4 {[%emt 0:19:42]} exf4 {[%emt 0:05:59]} 21. d4 {[%emt 0:00:33]} h5 {[%emt 0:03:12]} 22. Nh2 {[%emt 0:06:22] Prevents g4.} Rb2 {[%emt 0:07:44][%cal Og5g4]} 23. Nc4 {[%emt 0:01:41]} Rb5 {[%emt 0:11:57][%cal Og5g4]} 24. d5 {[%emt 0:06:22]} ({White should play} 24. Ba4 $16) 24... Ne5 {[%emt 0:01:29]} 25. Nxe5 {[%emt 0:00:06]} Rxe5 {[%emt 0:00:27]} 26. Nf3 {[%emt 0:00:40]} (26. Ba4 $5 {[%cal Ra4b5]} Rxa5 27. Bxd7 Rxa1 28. Qxa1 Qxd7 29. Nf3 $14) 26... g4 {[%emt 0:03:04]} 27. Nxe5 {[%emt 0:00:23]} Bxe5 {[%emt 0:00:28]} 28. hxg4 $2 {[%emt 0:00:47][%mdl 8192]} (28. Ba4 $1 $11 {and White has nothing to worry.} Rc5 29. Bxd7 Qxd7 30. Rf1) 28... hxg4 {[%emt 0:00:36]} (28... Qh4 $142 29. Qd3 (29. gxh5 $2 Rb2 $19) (29. Qf3 $2 hxg4 30. g3 fxg3 $19) 29... hxg4) 29. Ba4 $2 {[%emt 0:00:36] [#]} (29. g3 Qf6 30. Qd3) 29... Qh4 $1 $19 {[%emt 0:01:28]} 30. Ra2 {[%emt 0:00:35] [#]} (30. Re2 f3) 30... Rxa5 {[%emt 0:03:11]} (30... Rb1 $142 $3 {[%mdl 512]} 31. g3 (31. f3 Rxd1) 31... Rxd1 32. Rxd1 fxg3 $1 33. fxg3 Qxg3+ 34. Kh1 Bf4 $1 35. Re2 Qf3+ 36. Rg2 g3 $1 37. Rb1 Bh3 38. Rb8+ Kg7 39. Rbb2 Qf1+ 40. Rg1 g2+ 41. Rbxg2+ Bxg2#) 31. g3 {[%emt 0:00:27]} Qh3 {[%emt 0:02:49]} (31... fxg3 {( -> ...Qh2+)} 32. fxg3 Qxg3+ 33. Rg2 Bxa4 34. Qxg4+ Qxg4 35. Rxg4+ Kf8) 32. Bxd7 {[%emt 0:00:22] [#]} fxg3 $1 {[%emt 0:03:47]} 33. Qxg4+ {[%emt 0:00:42]} Qxg4 {[%emt 0:00:07]} 34. Bxg4 {[%emt 0:00:07]} Rxa2 {[%emt 0:00:05]} 35. fxg3 {[%emt 0:00:11][%mdl 4096] Endgame KRB-KRB} (35. Re2 {was worth a try.} Ra1+ 36. Kg2) 35... Rc2 {[%emt 0:04:52]} ({Weaker is} 35... Bxc3 36. Rc1 Bd4+ 37. Kf1) (35... a5 $1 $19 {[%cal Ra5a4] is more deadly. Threatens to win with ...a4.} 36. Re2 Ra1+ 37. Kf2 a4) 36. Bd7 {[%emt 0:01:06]} (36. Ra1 $142) 36... Rxc3 {[%emt 0:01:22]} (36... Bxc3 $142 37. Rb1 a5) 37. g4 {[%emt 0:00:06]} ({Better is} 37. Ra1) 37... a5 $17 {[%emt 0:00:35]} 38. Re2 {[%emt 0:00:16]} (38. Ra1 $17 {is a better defense.}) 38... Kf8 {[%emt 0:00:55]} 39. Ra2 {[%emt 0:00:14]} Ke7 {[%emt 0:01:20]} 40. Bc6 {[%emt 0:00:26]} Bd4+ {[%emt 0:01:30]} 41. Kg2 {[%emt 0:09:57]} Bb6 {[%emt 0:01:15]} 42. Re2 {[%emt 0:02:57]} (42. g5 $17) 42... Kf6 {[%emt 0:02:26]} 43. Re1 {[%emt 0:01:33]} Rc2+ {[%emt 0:02:08]} 44. Kh3 {[%emt 0:01:17]} Kg5 {[%emt 0:00:57]} 45. Rf1 {[%emt 0:03:11]} Bf2 {[%emt 0:02:11]} 46. Kg2 $2 {[%emt 0:06:27]} (46. Be8 {might work better.}) 46... Bd4+ $19 {[%emt 0:01:05]} 47. Kh3 {[%emt 0:00:09]} Be5 {[%emt 0:06:10][%csl Ge5][%cal Rc2h2]} 48. Rf5+ {[%emt 0:00:14]} Kg6 {[%emt 0:00:09][%csl Ge5][%cal Rc2h2]} 49. g5 {[%emt 0:00:05]} Kh5 {[%emt 0:03:24][%csl Ge5][%cal Rc2h2]} 50. g6+ {[%emt 0:01:32]} Kxg6 {[%emt 0:00:08]} 51. Be8 {[%emt 0:00:09]} Bf6 {[%emt 0:06:43]} 52. Rf3 {[%emt 0:00:16]} Re2 {[%emt 0:03:19]} 53. Bd7 {[%emt 0:01:11]} (53. Rg3+ $142 Kh6 54. Ra3) 53... Ra2 {[%emt 0:02:15]} 54. Rg3+ {[%emt 0:00:49]} Bg5 {[%emt 0:01:20]} 55. Kg4 {[%emt 0:00:35]} Bc1 {[%emt 0:02:02]} (55... a4 $19 {Hoping for ...a3.} 56. e5 dxe5) 56. Rc3 $17 {[%emt 0:00:21] [#]} Bb2 {[%emt 0:04:33]} 57. Rxc7 {[%emt 0:00:04] [#]} (57. Rc4 $17) 57... Be5 {[%emt 0:00:23]} (57... a4 $1 $19 {[%cal Ra4a3]} 58. Ra7 a3) 58. Ra7 {[%emt 0:00:46]} Ra1 {[%emt 0:00:57] Weighted Error Value: White=0.58/Black=0.39} (58... Kf6 $17 59. Be8 Bh2 60. Rxf7+ Ke5 61. Re7+ Kd4) 1/2-1/2

[Event "13th Dolomiti-Forni di Sopra-A 2022"]
[Site "Forni di Sopra"]
[Date "2022.06.13"]
[Round "2.8"]
[White "Vezzosi, Paolo"]
[Black "Goh, Zi Han"]
[Result "1/2-1/2"]
[ECO "D30"]
[WhiteElo "2225"]
[BlackElo "2087"]
[Annotator "NA RC"]
[PlyCount "86"]
[EventDate "2022.06.13"]
[EventType "swiss"]
[EventCountry "ITA"]
[SourceTitle "playchess.com"]
[Source "ChessBase"]
[SourceQuality "1"]
[TimeControl "40/5400+30:1800+30"]

1. d4 {[%emt 0:00:04]} d5 {[%emt 0:00:41]} 2. c4 {[%emt 0:00:10]} c6 {[%emt 0:00:13]} 3. Nf3 {[%emt 0:00:16]} Nf6 {[%emt 0:00:10]} 4. e3 {[%emt 0:01:13]} e6 {[%emt 0:00:15]} 5. Bd3 {[%emt 0:00:17]} Nbd7 {[%emt 0:02:08]} 6. b3 {[%emt 0:00:28]} Be7 {[%emt 0:00:12]} 7. O-O {[%emt 0:00:29]} O-O {[%emt 0:00:16]} 8. Nbd2 {[%emt 0:00:14]} dxc4 {[%emt 0:02:43]} 9. bxc4 {[%emt 0:01:37]} c5 {[%emt 0:00:18]} 10. Qe2 {[%emt 0:00:34]} cxd4 {[%emt 0:02:41]} 11. exd4 {[%emt 0:00:08]} b6 {[%emt 0:02:16]} 12. Bb2 {[%emt 0:00:57]} Bb7 {[%emt 0:00:13]} 13. Rfd1 {[%emt 0:03:28]} Re8 {[%emt 0:05:41]} 14. Ne5 {[%emt 0:14:03]} Qc7 {[%emt 0:18:50]} 15. Ndf3 {[%emt 0:00:37]} Rad8 {[%emt 0:01:09]} 16. Nxf7 {[%emt 0:02:39]} Bxf3 {[%emt 0:07:40]} 17. Qxe6 {[%emt 0:00:22]} Bh5 {[%emt 0:01:17]} 18. Nxd8+ {[%emt 0:00:11]} Kf8 {[%emt 0:01:33]} 19. Re1 {[%emt 0:03:00]} Qxd8 {[%emt 0:03:27]} 20. Re3 {[%emt 0:02:03]} Qc7 {[%emt 0:08:54]} 21. Qh3 {[%emt 0:05:14]} Bd6 {[%emt 0:06:27]} 22. Rxe8+ {[%emt 0:01:01]} Bxe8 {[%emt 0:00:21]} 23. Re1 {[%emt 0:03:51]} Bf7 {[%emt 0:01:10]} 24. Bxh7 {[%emt 0:03:07]} Qxc4 {[%emt 0:11:04]} 25. Bf5 {[%emt 0:00:53]} Qb5 {[%emt 0:01:37]} 26. Ba3 {[%emt 0:03:54]} Bxa3 {[%emt 0:01:11]} 27. Qxa3+ {[%emt 0:00:08]} Kg8 {[%emt 0:00:05]} 28. Bxd7 {[%emt 0:02:57]} Qxd7 {[%emt 0:00:31]} 29. Qb2 {[%emt 0:00:14]} Nd5 {[%emt 0:04:38]} 30. a3 {[%emt 0:02:04]} a5 {[%emt 0:06:14]} 31. h3 {[%emt 0:01:21]} Qd6 {[%emt 0:01:38]} 32. Rc1 {[%emt 0:00:45]} Nf4 {[%emt 0:02:04]} 33. Rc3 {[%emt 0:01:33]} Qxd4 {[%emt 0:04:31]} 34. Rc8+ {[%emt 0:00:07]} Kh7 {[%emt 0:00:03]} 35. Qxd4 {[%emt 0:00:06]} Ne2+ {[%emt 0:00:02]} 36. Kf1 {[%emt 0:00:07]} Nxd4 {[%emt 0:00:02]} 37. Ke1 {[%emt 0:00:12]} b5 {[%emt 0:02:47]} 38. Kd2 {[%emt 0:01:07]} b4 {[%emt 0:01:26]} 39. axb4 {[%emt 0:00:06]} axb4 {[%emt 0:00:04]} 40. Rb8 {[%emt 0:00:58]} b3 {[%emt 0:00:20]} 41. f4 {[%emt 0:30:18]} Nf5 {[%emt 0:05:17]} 42. g4 {[%emt 0:00:00]} Nd6 {[%emt 0:00:17]} 43. f5 {[%emt 0:00:00]} Bd5 {[%emt 0:15:59]} 1/2-1/2

[Event "13th Dolomiti-Forni di Sopra-A 2022"]
[Site "Forni di Sopra"]
[Date "2022.06.13"]
[Round "2.9"]
[White "Kozlovic, Jernej"]
[Black "Pozzari, Simone"]
[Result "1-0"]
[ECO "D02"]
[WhiteElo "2005"]
[BlackElo "2184"]
[Annotator "RC"]
[PlyCount "69"]
[EventDate "2022.06.13"]
[EventType "swiss"]
[EventCountry "ITA"]
[SourceTitle "playchess.com"]
[Source "ChessBase"]
[SourceQuality "1"]
[TimeControl "40/5400+30:1800+30"]

1. Nf3 {[%emt 0:00:03]} d5 {[%emt 0:00:08]} 2. d4 {[%emt 0:00:27]} e6 {[%emt 0:00:05]} 3. Bf4 {[%emt 0:00:19]} c5 {[%emt 0:00:21]} 4. c3 {[%emt 0:00:20]} Nc6 {[%emt 0:00:05]} 5. e3 {[%emt 0:00:11]} Nf6 {[%emt 0:00:05]} 6. Nbd2 {[%emt 0:00:16]} Nh5 {[%emt 0:00:22]} 7. Be5 {[%emt 0:01:48]} f6 {[%emt 0:00:11]} 8. Bg3 {[%emt 0:01:20]} Nxg3 {[%emt 0:00:08]} 9. hxg3 {[%emt 0:00:04]} Qb6 {[%emt 0:00:07]} 10. Qc2 {[%emt 0:03:54]} cxd4 {[%emt 0:04:50]} 11. exd4 {[%emt 0:01:14]} Bd7 {[%emt 0:00:07]} 12. Bd3 {[%emt 0:02:02]} O-O-O {[%emt 0:00:09]} 13. Rxh7 {[%emt 0:18:56]} Rxh7 {[%emt 0:00:08]} 14. Bxh7 {[%emt 0:00:11]} Kb8 {[%emt 0:00:04]} 15. O-O-O {[%emt 0:01:34]} e5 {[%emt 0:00:11]} 16. Nf1 {[%emt 0:07:33]} e4 {[%emt 0:02:21]} 17. N3d2 {[%emt 0:01:47]} Nxd4 {[%emt 0:03:07]} 18. Nc4 {[%emt 0:02:09]} Nxc2 {[%emt 0:05:43]} 19. Nxb6 {[%emt 0:00:12]} axb6 {[%emt 0:00:48]} 20. Kxc2 {[%emt 0:00:15]} Bb5 {[%emt 0:06:26]} 21. Kc1 {[%emt 0:05:42]} Bc5 {[%emt 0:02:17]} 22. Ne3 {[%emt 0:01:29]} Bd3 {[%emt 0:07:59]} 23. b4 {[%emt 0:06:14]} Bxe3+ {[%emt 0:06:05]} 24. fxe3 {[%emt 0:00:03]} Rc8 {[%emt 0:03:27]} 25. Kb2 {[%emt 0:02:36]} g5 {[%emt 0:08:30]} 26. Rh1 {[%emt 0:08:08]} Rh8 {[%emt 0:18:43]} 27. Rh3 {[%emt 0:00:58]} Bf1 {[%emt 0:02:53]} 28. Bf5 {[%emt 0:00:17]} Rf8 {[%emt 0:02:06]} 29. Rh2 {[%emt 0:00:29]} Kc7 {[%emt 0:00:13]} 30. g4 {[%emt 0:00:53]} Kc6 {[%emt 0:01:22]} 31. g3 {[%emt 0:00:32]} Kb5 {[%emt 0:05:31]} 32. a4+ {[%emt 0:05:48]} Kxa4 {[%emt 0:03:11]} 33. Rh1 {[%emt 0:00:53]} Kb5 {[%emt 0:01:28]} 34. Rxf1 {[%emt 0:00:49]} Kc4 {[%emt 0:00:13]} 35. Rd1 {[%emt 0:00:38]} 1-0

[Event "13th Dolomiti-Forni di Sopra-A 2022"]
[Site "Forni di Sopra"]
[Date "2022.06.13"]
[Round "2.10"]
[White "Vezzani, Stefano"]
[Black "Higatsberger, Michael"]
[Result "0-1"]
[ECO "B20"]
[WhiteElo "2135"]
[BlackElo "2046"]
[Annotator "RC"]
[PlyCount "55"]
[EventDate "2022.06.13"]
[EventType "swiss"]
[EventCountry "ITA"]
[SourceTitle "playchess.com"]
[Source "ChessBase"]
[SourceQuality "1"]
[TimeControl "40/5400+30:1800+30"]

1. e4 {[%emt 0:00:06]} c5 {[%emt 0:00:11]} 2. b3 {[%emt 0:00:07]} g6 {[%emt 0:00:28]} 3. Bb2 {[%emt 0:00:08]} Nf6 {[%emt 0:00:06]} 4. e5 {[%emt 0:00:11]} Nd5 {[%emt 0:00:07]} 5. Nc3 {[%emt 0:00:09]} Nxc3 {[%emt 0:00:58]} 6. dxc3 {[%emt 0:00:07]} Bg7 {[%emt 0:00:25]} 7. f4 {[%emt 0:01:40]} O-O {[%emt 0:00:37]} 8. Nf3 {[%emt 0:02:25]} d6 {[%emt 0:03:35]} 9. Be2 {[%emt 0:06:25]} dxe5 {[%emt 0:06:56]} 10. Nxe5 {[%emt 0:01:04]} Nd7 {[%emt 0:02:08]} 11. Nc4 {[%emt 0:06:08]} b5 {[%emt 0:06:23]} 12. Ne3 {[%emt 0:01:36]} Rb8 {[%emt 0:13:08]} 13. O-O {[%emt 0:03:27]} e6 {[%emt 0:01:13]} 14. Qe1 {[%emt 0:02:23]} Bb7 {[%emt 0:07:55]} 15. Rd1 {[%emt 0:02:58]} Bc6 {[%emt 0:00:26]} 16. Qg3 {[%emt 0:09:59]} Qc7 {[%emt 0:06:03]} 17. Ba1 {[%emt 0:18:36]} Nf6 {[%emt 0:02:45]} 18. Bf3 {[%emt 0:08:15]} Rfd8 {[%emt 0:05:52]} 19. c4 {[%emt 0:02:07]} Bxf3 {[%emt 0:05:33]} 20. Qxf3 {[%emt 0:01:20]} b4 {[%emt 0:02:29]} 21. Be5 {[%emt 0:00:19]} Qa5 {[%emt 0:01:18]} 22. Bxb8 {[%emt 0:01:33]} Rxb8 {[%emt 0:00:05]} 23. Qc6 {[%emt 0:01:01]} Ne8 {[%emt 0:02:05]} 24. Ng4 {[%emt 0:01:48]} Bd4+ {[%emt 0:00:19]} 25. Kh1 {[%emt 0:00:08]} Qa4 {[%emt 0:31:55]} 26. a3 Qxa3 {[%emt 0:00:00]} 27. Qd7 {[%emt 0:05:46]} Qa2 {[%emt 0:00:00]} 28. Nf6+ {[%emt 0:03:52]} 0-1

[Event "13th Dolomiti-Forni di Sopra-A 2022"]
[Site "Forni di Sopra"]
[Date "2022.06.13"]
[Round "2.12"]
[White "Molina, Fabrizio"]
[Black "Fiorido, Giuseppe"]
[Result "1-0"]
[ECO "A18"]
[WhiteElo "2124"]
[BlackElo "2002"]
[Annotator "NA RC"]
[PlyCount "21"]
[EventDate "2022.06.13"]
[EventType "swiss"]
[EventCountry "ITA"]
[SourceTitle "playchess.com"]
[Source "ChessBase"]
[SourceQuality "1"]
[TimeControl "40/5400+30:1800+30"]

1. c4 {[%emt 0:00:03]} Nf6 {[%emt 0:02:34]} 2. Nc3 {[%emt 0:00:07]} e6 {[%emt 0:00:11]} 3. e4 {[%emt 0:00:06]} d5 {[%emt 0:00:09]} 4. e5 {[%emt 0:00:09]} d4 {[%emt 0:00:38]} 5. exf6 {[%emt 0:00:28]} dxc3 {[%emt 0:00:10]} 6. fxg7 {[%emt 0:02:40]} cxd2+ {[%emt 0:00:20]} 7. Bxd2 {[%emt 0:00:07]} Bxg7 {[%emt 0:00:10]} 8. Qb3 {[%emt 0:00:03]} Qd4 {[%emt 0:19:11]} 9. O-O-O {[%emt 0:12:25]} Qb6 10. Qc2 {[%emt 0:08:02]} Nc6 {[%emt 0:11:38]} 11. c5 {[%emt 0:03:28]} 1-0

[Event "13th Dolomiti-Forni di Sopra-A 2022"]
[Site "Forni di Sopra"]
[Date "2022.06.13"]
[Round "2.13"]
[White "Candian, Lorenzo"]
[Black "Lavorgna, Giovanni"]
[Result "0-1"]
[ECO "B88"]
[WhiteElo "2048"]
[BlackElo "1834"]
[Annotator "TA"]
[PlyCount "39"]
[EventDate "2022.06.13"]
[EventType "swiss"]
[EventCountry "ITA"]
[SourceTitle "playchess.com"]
[Source "ChessBase"]
[SourceQuality "1"]
[TimeControl "40/5400+30:1800+30"]

{[%evp 21,39,29,26,-31,-32,-30,-46,-48,0,-72,-53,-63,-19,-16,-45,-40,2,7,0,0]} 1. e4 {[%emt 0:00:01]} c5 {[%emt 0:04:31]} 2. Nf3 {[%emt 0:00:10]} d6 {[%emt 0:00:08]} 3. d4 {[%emt 0:00:05]} cxd4 {[%emt 0:00:08]} 4. Nxd4 {[%emt 0:00:07]} Nf6 {[%emt 0:00:08]} 5. Nc3 {[%emt 0:00:07]} Nc6 {[%emt 0:00:10]} 6. Bc4 {[%emt 0:00:10]} e6 {[%emt 0:00:15]} 7. Be3 {[%emt 0:00:27]} Be7 {[%emt 0:00:21]} 8. O-O {[%emt 0:00:15]} a6 {[%emt 0:00:40]} 9. Bb3 {[%emt 0:00:05]} O-O {[%emt 0:00:32]} 10. f4 {[%emt 0:00:13]} Nxd4 {[%emt 0:00:59]} 11. Bxd4 {[%emt 0:01:05]} b5 {[%emt 0:00:29][%cal Bb7b5,Bb5b4][%mdl 32]} 12. Qf3 {[%emt 0:02:44] B88: Sicilian: Sozin Attack.} (12. e5 $11 dxe5 13. fxe5) 12... Bb7 $15 {[%emt 0:02:44]} 13. Rae1 {[%emt 0:01:12]} b4 {[%emt 0:01:48]} 14. Na4 {[%emt 0:00:19] [#] Black is slightly better.} Qc7 $146 {[%emt 0:08:09]} (14... Bc6 $15) ({Predecessor:} 14... Nd7 15. Qg4 e5 16. fxe5 dxe5 17. Be3 Nf6 18. Qg3 Nxe4 19. Qxe5 Bd6 20. Qh5 Nf6 21. Qg5 h6 22. Qf5 Be4 23. Qf2 Ng4 24. Qe2 Bxh2+ {0-1 (24) Lini,D-Napoli Costa,A Italy 1987}) 15. g4 {[%emt 0:02:44]} (15. Qg3 $11 {keeps the balance.}) 15... e5 $17 {[%emt 0:04:53]} 16. Bf2 {[%emt 0:16:06]} exf4 {[%emt 0:05:59]} (16... Bc6 $5 {[%cal Rc7b7]}) 17. Nb6 {[%emt 0:16:35]} Rab8 {[%emt 0:03:38]} 18. Qxf4 {[%emt 0:02:19]} Nxe4 {[%emt 0:05:38]} (18... Bc6 $5 {[%cal Rb8b6]} 19. Bd4 Rxb6 $11) 19. Rxe4 {[%emt 0:05:04]} Bxe4 {[%emt 0:00:28]} 20. Qxe4 {[%emt 0:00:17][%mdl 32768] Weighted Error Value: White=0.32/Black=0.17 (very precise) . Loss on time!?} 0-1

[Event "13th Dolomiti-Forni di Sopra-A 2022"]
[Site "Forni di Sopra"]
[Date "2022.06.14"]
[Round "3.4"]
[White "Ambardekar, Harshavardhan"]
[Black "Ceres, Dragos"]
[Result "1-0"]
[ECO "C78"]
[WhiteElo "1656"]
[BlackElo "2380"]
[Annotator "TA"]
[PlyCount "127"]
[EventDate "2022.06.13"]
[EventType "swiss"]
[EventCountry "ITA"]
[SourceTitle "playchess.com"]
[Source "ChessBase"]
[SourceQuality "1"]
[TimeControl "40/5400+30:1800+30"]

{[%evp 24,127,9,-10,-10,-10,-6,-12,-9,-5,-10,-10,0,-9,-9,-9,-9,-9,-8,-13,-10,-10,-10,-10,0,-2,-7,-1,0,0,0,0,37,17,46,31,29,13,11,1,35,35,35,35,35,35,35,32,32,42,41,41,51,20,16,8,8,18,129,101,154,129,169,154,168,114,124,125,194,202,230,230,240,216,390,393,281,266,714,723,651,623,634,608,2457,2107,1416,1158,5189,4880,4645,3374,1800,1549,7844,1264,953,948,29953,29957,29956,29957,29976,29977,29980,29980]} 1. e4 {[%emt 0:00:38]} e5 {[%emt 0:02:26]} 2. Nf3 {[%emt 0:00:37]} Nc6 {[%emt 0:00:07]} 3. Bb5 {[%emt 0:00:33]} a6 {[%emt 0:00:20]} 4. Ba4 {[%emt 0:00:06]} Nf6 {[%emt 0:00:09]} 5. O-O {[%emt 0:00:28]} b5 {[%emt 0:00:19]} 6. Bb3 {[%emt 0:00:25]} Bb7 {[%emt 0:00:04]} 7. Re1 {[%emt 0:00:26]} Bc5 {[%emt 0:03:47]} 8. c3 {[%emt 0:00:11]} d6 {[%emt 0:00:04]} 9. d4 {[%emt 0:00:04]} Bb6 {[%emt 0:00:05]} 10. a4 {[%emt 0:00:04]} h6 {[%emt 0:00:51]} 11. axb5 {[%emt 0:02:12]} axb5 {[%emt 0:00:06]} 12. Rxa8 {[%emt 0:00:05]} Qxa8 {[%emt 0:01:03]} 13. Na3 {[%emt 0:00:14]} exd4 {[%emt 0:08:16] C78: Ruy Lopez: Archangelsk and Möller Defences.} 14. cxd4 {[%emt 0:01:45]} O-O {[%emt 0:00:18] Black wants to play ...Na5.} 15. Nxb5 {[%emt 0:16:43]} Na5 {[%emt 0:00:23] The position is equal.} 16. Bc2 {[%emt 0:00:53]} Bxe4 {[%emt 0:04:03]} 17. Bxe4 {[%emt 0:01:04]} Nxe4 {[%emt 0:00:04] [#]} 18. Nh4 $146 {[%emt 0:00:28][%cal Bf3h4,Bh4f5,Bf5e7,Be7f5,Bf5d6][%mdl 32]} ({Predecessor:} 18. Qc2 Nf6 19. Bd2 Qd5 20. Nxc7 Qc4 21. Qxc4 Nxc4 22. Nb5 Rb8 23. Ra1 Ba5 24. Nxd6 Nxd2 25. Rxa5 Rxb2 26. Nxd2 Rxd2 {1-0 (55) Bosiocic,M (2611)-Sonis,F (2459) Spilimbergo 2019}) 18... Re8 {[%emt 0:09:26]} 19. Nf5 {[%emt 0:02:31]} Nf6 {[%emt 0:00:19] Inhibits Qg4.} 20. h3 {[%emt 0:02:39]} Nc6 {[%emt 0:08:59]} 21. Re3 {[%emt 0:09:23]} Rxe3 {[%emt 0:02:41]} 22. Bxe3 {[%emt 0:00:34]} Qa5 {[%emt 0:08:21]} 23. Qe2 {[%emt 0:01:15]} Na7 {[%emt 0:05:53]} 24. Ne7+ {[%emt 0:00:40]} Kf8 {[%emt 0:00:06]} 25. Nxa7 {[%emt 0:00:06]} Qxa7 {[%emt 0:00:47]} 26. Nf5 {[%emt 0:01:41][%cal Oe3h6] aiming for Bxh6!} Qa1+ {[%emt 0:03:08]} 27. Kh2 {[%emt 0:00:07][%cal Oe3h6]} Qb1 {[%emt 0:00:08]} (27... Qa5 $5 {[%cal Ra5f5]} 28. g4 Nd5 $11) 28. Qb5 {[%emt 0:00:52][%cal Of5d6]} d5 {[%emt 0:06:11] [#]} 29. Nd6 {[%emt 0:03:33]} Qc2 {[%emt 0:03:45]} ({Don't do} 29... cxd6 30. Qxb6 Ke7 31. Bf4 $16) (29... Qa2 30. Qc6) 30. g4 {[%emt 0:05:05]} Kg8 {[%emt 0:05:32]} 31. Nc8 {[%emt 0:50:38]} Qc4 {[%emt 0:04:46]} 32. Qxc4 {[%emt 0:00:00]} dxc4 {[%emt 0:00:04]} 33. Nxb6 {[%emt 0:00:00]} cxb6 $14 {[%emt 0:00:03][%mdl 4096] Endgame KB-KN} 34. Kg3 {[%emt 0:00:00]} b5 {[%emt 0:06:49]} 35. Kf4 {[%emt 0:00:00] Hoping for Ke5.} b4 {[%emt 0:02:44]} 36. Ke5 {[%emt 0:00:00]} c3 {[%emt 0:00:17] Prevents Bd2.} 37. b3 {[%emt 0:00:00]} Kf8 {[%emt 0:02:59]} 38. d5 {[%emt 0:00:00][%cal Bd4d5,Bd5d6][%mdl 32]} Ke8 {[%emt 0:01:28]} 39. Kd4 {[%emt 0:00:00]} Kd7 {[%emt 0:01:17]} 40. f3 {[%emt 0:00:00]} g5 {[%emt 0:03:22]} (40... Nh7 $11 {remains equal.}) 41. Kc5 {[%emt 0:10:32]} c2 {[%emt 0:33:26]} (41... Kc7 $142) 42. Bc1 {[%emt 0:03:25]} Kc7 {[%emt 0:01:11]} 43. d6+ {[%emt 0:01:14]} Kd7 {[%emt 0:00:09]} 44. Kxb4 {[%emt 0:00:05]} (44. Bd2 $18) 44... Nd5+ $16 {[%emt 0:03:28]} 45. Ka3 {[%emt 0:00:04] Threatens to win with Kb2.} Kxd6 {[%emt 0:00:20]} (45... Nc3 $16 {is a better defense.}) 46. Kb2 $18 {[%emt 0:00:31]} Ke5 {[%emt 0:01:13]} 47. Kxc2 {[%emt 0:00:22]} Kd4 {[%emt 0:00:14] [#]} 48. Bd2 {[%emt 0:02:49] Against Nb4+} f6 $2 {[%emt 0:00:41] [#]} (48... Nc7 49. f4 Ne6) 49. Bc1 $1 {[%emt 0:05:44]} Nb4+ {[%emt 0:00:00]} 50. Kd2 {[%emt 0:00:00] Strongly threatening Bb2+.} Nd3 {[%emt 0:00:00] Prevents Bb2+.} (50... Nd5 51. Bb2+ Kc5 52. Ba3+ Kd4 53. Bb2+ Kc5) 51. Ba3 {[%emt 0:00:00]} Nf4 {[%emt 0:00:00]} 52. Bb2+ {[%emt 0:00:00]} Kd5 {[%emt 0:00:00]} 53. Bxf6 {[%emt 0:00:00]} Nxh3 {[%emt 0:00:00]} 54. Bg7 {[%emt 0:00:00]} Kc5 {[%emt 0:00:00]} 55. Bf8+ {[%emt 0:00:00]} Kb5 {[%emt 0:00:00]} 56. Ke3 {[%emt 0:00:00]} Ka5 {[%emt 0:00:00]} 57. Kd4 {[%emt 0:00:00]} Kb5 {[%emt 0:00:00]} 58. Ke4 {[%emt 0:00:00]} Ka5 {[%emt 0:00:00]} 59. Kd5 {[%emt 0:00:00]} (59. Bxh6 $142 Kb4 60. Kf5) 59... Kb5 {[%emt 0:00:00]} 60. Bxh6 {[%emt 0:00:00]} Kb4 {[%emt 0:00:00] [#]} 61. Bxg5 $1 {[%emt 0:00:00][%mdl 512] White mates.} Nxg5 {[%emt 0:00:00]} 62. f4 {[%emt 0:00:00]} Nh3 {[%emt 0:00:00]} 63. Ke5 {[%emt 0:00:00]} Kxb3 {[%emt 0:00:00]} 64. g5 {[%emt 0:00:00] Weighted Error Value: White=0.06 (flawless) /Black=0.29 (precise)} 1-0